Cogmind - Beta 11.1 @@@ ROGUE MODE // 2022.06.01 @ 03:01:06 Player: Lyra Result: Destroyed by A-27 Freighter with PD Laser Performance ------------- Evolutions (3) 1500 Regions Visited (7) 1400 Robots Destroyed (91) 455 Value Destroyed (2388) 2388 Prototype IDs (3) 60 Alien Tech Used (0) 0 Bonus (2) 2 TOTAL SCORE: 5805 Bonus ------- High Alert Combat Kills 2 Cogmind --------- Core Integrity 0/700 Matter 259/300 Energy 63/100 System Corruption 9% Temperature Cool (6) Movement Core (50) Location -7/Factory Parts ------- > --- POWER (1) -------- (None) > --- PROPULSION (3) --- (None) > --- UTILITY (7) ------ (None) > --- WEAPON (2) ------- Maul > --- INVENTORY (5) ---- Coolant Injector Hardlight Generator System Shield Enhanced Autogun Peak State ------------ > --- POWER ------------ Improved Deuterium Engine > --- PROPULSION ------- Improved Titanium Leg Backup Propulsion III Backup Propulsion III > --- UTILITY ---------- Disposable Heat Sink Large Storage Unit Structural Scanner Heavy Armor Plating Hacking Suite > --- WEAPON ----------- Enhanced Autogun Enhanced Autogun > --- INVENTORY -------- Coolant Injector Visual Processing Unit Light Armor Plating Hardlight Generator System Shield Long-range Tractor Beam Enhanced Autogun Flak Gun Flak Gun Grenade Launcher Maul [Rating: 38] Favorites ----------- Power Improved Ion Engine Engine Improved Ion Engine Propulsion Light Treads Treads Light Treads Leg Improved Titanium Leg Wheel Wheel Hover Unit Backup Propulsion III Utility Large Storage Unit Device Structural Scanner Storage Large Storage Unit Processor Targeting Computer Hackware Hacking Suite Protection Heavy Armor Plating Weapon Heavy Assault Rifle Energy Gun Small Laser Energy Cannon Beam Cannon Ballistic Gun Heavy Assault Rifle Launcher Grenade Launcher Impact Weapon Maul Build | -11 -10 -9 -9 -9 -8 -8 -7 ------- Run | Scr Mat Mat Min Exi Min Mat Fac Slots Evolved 6 | . . 2 . . . 2 2 Power . | . . . . . . . . Propulsion 1 | . . 1 . . . . . Utility 5 | . . 1 . . . 2 2 Weapon . | . . . . . . . . Parts Attached 80 | 6 3 24 5 . 3 23 16 Power 5 | 1 . 1 . . . 2 1 Engine 5 | 1 . 1 . . . 2 1 Core . | . . . . . . . . Reactor . | . . . . . . . . Propulsion 16 | 2 . 9 . . . 4 1 Treads 13 | . . 9 . . . 4 . Leg 1 | . . . . . . . 1 Wheel 2 | 2 . . . . . . . Hover . | . . . . . . . . Flight . | . . . . . . . . Utility 23 | 1 2 8 . . . 7 5 Device 5 | . 1 . . . . 2 2 Storage 4 | 1 . 3 . . . . . Processor 4 | . 1 1 . . . 2 . Hackware 1 | . . . . . . 1 . Protection 9 | . . 4 . . . 2 3 Artifact . | . . . . . . . . Weapon 36 | 2 1 6 5 . 3 10 9 Energy Gun 2 | 1 . . . . . 1 . Energy Cannon 1 | . 1 . . . . . . Ballistic Gun 23 | 1 . 6 2 . 2 7 5 Ballistic Cannon . | . . . . . . . . Launcher 7 | . . . 3 . 1 2 1 Special Weapon . | . . . . . . . . Impact Weapon 3 | . . . . . . . 3 Slashing Weapon . | . . . . . . . . Piercing Weapon . | . . . . . . . . Special Melee Weapon . | . . . . . . . . Unidentified Prototypes 3 | . . 1 . . . 2 . Parts Lost 26 | . . 2 . . 1 6 17 Power 3 | . . 1 . . . 1 1 Propulsion 8 | . . . . . 1 2 5 Utility 9 | . . . . . . 2 7 Weapon 6 | . . 1 . . . 1 4 Highest Loss Streak 14 | . . 1 . . 1 4 14 To Critical Strikes . | . . . . . . . . Average Slot Usage (%) 85 | . 91 90 88 88 84 82 78 Engine 8 | . 14 7 11 11 11 7 6 Treads 24 | . . 28 33 33 29 23 11 Wheel 1 | . 28 3 . . . . . Device 4 | . 5 3 . . . 4 13 Storage 9 | . 10 8 11 11 11 9 6 Processor 3 | . 3 6 . . . 4 6 Hackware 2 | . . . . . . 7 6 Protection 8 | . . 9 11 11 11 8 6 Ballistic Gun 15 | . 9 20 12 11 12 16 11 Launcher 3 | . . . 9 11 9 1 . Naked Turns 7 | . . . . . . . 7 Heaviest Build 59 | 13 15 48 48 48 49 53 59 Greatest Support 66 | 20 20 60 60 60 60 66 40 Greatest Overweight (x) 12 | . . . . . 1 1 12 Average Overweight (x) . | . . . . . . . 1 Largest Inventory Capacity 15 | 8 8 15 15 15 15 15 15 Average Capacity 13 | 6 7 9 15 15 15 15 14 Most Carried 15 | . 3 14 15 15 15 15 13 Average Carried 11 | . 1 7 14 15 15 13 11 Final Capacity 15 | 8 5 15 15 15 15 15 5 Final Carried 15 | . 3 14 15 15 15 12 4 Class Distribution -------------------- 91% | Scavenger-Mutant 8% | Mutant Dominant Class ---------------- Mutant | -10/Materials Scavenger-Mutant | -9/Materials Scavenger-Mutant | -9/Mines Scavenger-Mutant | -9/Exiles Scavenger-Mutant | -8/Mines Scavenger-Mutant | -8/Materials Scavenger-Mutant | -7/Factory Resources | -11 -10 -9 -9 -9 -8 -8 -7 ----------- Run | Scr Mat Mat Min Exi Min Mat Fac Matter Collected 2418 | 78 81 741 58 . 163 979 318 Remotely . | . . . . . . . . Salvage Created 2935 | . 92 789 94 . 221 1288 451 Parts 187 | . 5 67 11 . 16 69 19 Haulers Intercepted 5 | . . 1 . . . 2 2 Recyclers Shooed 2 | . . 2 . . . . . Parts Field Recycled . | . . . . . . . . Retrieved Matter . | . . . . . . . . Parts Self-Destructed . | . . . . . . . . Prevented . | . . . . . . . . Kills | -11 -10 -9 -9 -9 -8 -8 -7 ------- Run | Scr Mat Mat Min Exi Min Mat Fac Combat Hostiles Destroyed 63 | . 2 16 10 . 12 17 6 Melee 1 | . . . . . . . 1 Guns 36 | . 2 14 1 . 4 11 4 Cannons 1 | . . 1 . . . . . AOE 25 | . . 1 9 . 8 6 1 Classes Destroyed 13 | . 2 7 . . 2 1 1 Worker 2 | . . 1 . . 1 . . Builder 8 | . . 3 . . . 5 . Hauler 5 | . . 1 . . . 2 2 Recycler 8 | . . . . . . 6 2 Operator 3 | . 1 2 . . . . . Watcher 2 | . . 2 . . . . . Swarmer 24 | . . 6 8 . 7 . 3 Grunt 21 | . 2 3 1 . 2 12 1 Brawler 3 | . . 1 1 . . 1 . Duelist 1 | . . . . . 1 . . Sentry 9 | . . 6 . . . 3 . Hunter 3 | . . . . . 2 1 . Programmer 2 | . . . . . . . 2 Best Kill Streak 7 | . 2 5 4 . 4 7 3 Combat Bots Only 4 | . 2 3 4 . 4 3 3 Max Kills in Single Turn 4 | . 1 2 4 . 2 3 2 Gunslinging . | . . . . . . . . Exploded 4 | . . 1 4 . 2 2 1 Melee 1 | . . . . . . . 1 Uniques/NPCs Destroyed . | . . . . . . . . Combat | -11 -10 -9 -9 -9 -8 -8 -7 -------- Run | Scr Mat Mat Min Exi Min Mat Fac Damage Taken 5522 | . 89 985 62 . 563 1128 2695 Core 1067 | . 58 169 7 . 40 69 724 Absorbed by Shields 60 | . . . . . . 60 . Core Remaining (%) 77 | 100 76 . . . 46 87 . Volleys Fired 202 | . 7 61 5 . 21 72 36 Largest 2 | . 2 2 2 . 2 2 2 Hottest 83 | . 60 83 60 . 53 58 58 Shots Fired 390 | . 14 118 9 . 38 142 69 Gun 350 | . 14 112 2 . 25 129 68 Cannon 6 | . . 6 . . . . . Launcher 34 | . . . 7 . 13 13 1 Special . | . . . . . . . . Kinetic 343 | . 7 112 2 . 25 129 68 Thermal 13 | . 7 6 . . . . . Explosive 34 | . . . 7 . 13 13 1 Electromagnetic . | . . . . . . . . Robot Hit Streak 20 | . 5 20 2 . 7 10 10 Robot Miss Streak 3 | . 1 3 1 . 3 3 3 Penetration Max . | . . . . . . . . Secondary Targets 1 | . . 1 . . . . . Max Gunslinging Chain 1 | . . 1 . . . . . Shots Hit Robots 269 | . 12 89 2 . 23 93 50 Core Hits 176 | . 5 36 16 . 23 56 40 Critical Kills . | . . . . . . . . Critical Parts Destroyed 3 | . . . . . . 2 1 Critical Strikes 3 | . . . . . . 2 1 Destroy 2 | . . . . . . 2 . Smash 1 | . . . . . . . 1 Melee Attacks 11 | . . . . . . . 11 Impact 11 | . . . . . . . 11 Slashing . | . . . . . . . . Piercing . | . . . . . . . . Sneak Attacks . | . . . . . . . . Combat Hostiles . | . . . . . . . . Follow-up Attacks . | . . . . . . . . Damage Inflicted 6880 | . 145 1537 585 . 782 2495 1336 Guns 4058 | . 145 1298 18 . 202 1487 908 Cannons 69 | . . 69 . . . . . Explosions 2645 | . . 168 558 . 559 1007 353 Melee 70 | . . . . . . . 70 Ramming 38 | . . 2 9 . 21 1 5 Kinetic 3993 | . 80 1298 18 . 202 1487 908 Thermal 134 | . 65 69 . . . . . Explosive 2645 | . . 168 558 . 559 1007 353 Electromagnetic . | . . . . . . . . Impact 70 | . . . . . . . 70 Slashing . | . . . . . . . . Piercing . | . . . . . . . . Highest Corruption 9 | . 1 . . . . . 9 Average Corruption 1 | . 1 . . . . . 2 Corruption Purged . | . . . . . . . . Corruption Blocked . | . . . . . . . . Effects 3 | . 1 . . . . . 2 Message Errors 1 | . . . . . . . 1 Data Loss (minor) 1 | . 1 . . . . . . Alerts 1 | . . . . . . . 1 Overload Shots . | . . . . . . . . Overflow Damage 200 | . . . 30 . . 14 156 Projectiles . | . . . . . . . . Explosions 164 | . . . 30 . . 14 120 Melee 36 | . . . . . . . 36 Knockbacks . | . . . . . . . . Impact . | . . . . . . . . Kinetic . | . . . . . . . . Secondary . | . . . . . . . . Self-Inflicted Damage 796 | . . 212 . . 206 133 245 Shots 18 | . . 5 . . 6 4 3 Rammed 10 | . . 3 1 . 1 1 4 Targets Rammed 11 | . . 3 1 . 2 1 4 Kicked . | . . . . . . . . Crushed 1 | . . . . . 1 . . Highest Temperature 163 | . 36 25 24 . 70 163 35 Average Temperature 28 | . 22 9 8 . 15 45 10 Received Heat Transfer 1012 | . 36 249 . . 63 469 195 Siege Activations . | . . . . . . . . Robots Corrupted . | . . . . . . . . Combat Hostiles . | . . . . . . . . Parts Fried . | . . . . . . . . Impact Corruptions 2 | . . . . . 1 . 1 Robots Melted . | . . . . . . . . Combat Hostiles . | . . . . . . . . Parts Melted . | . . . . . . . . Heat Transferred 298 | . 150 148 . . . . . Parts Sabotaged . | . . . . . . . . Parts Stolen . | . . . . . . . . Parts Stripped . | . . . . . . . . Power Chain Reactions 1 | . . 1 . . . . . Missiles Intercepted . | . . . . . . . . Alert | -11 -10 -9 -9 -9 -8 -8 -7 ------- Run | Scr Mat Mat Min Exi Min Mat Fac Peak Influence 436 | . 55 436 427 . 384 376 249 Initial 170 | . . 22 68 . . 71 170 Average 192 | . 27 180 292 . 206 209 149 Maximum Alert Level 2 | . . 2 2 . 1 1 1 Low Security (%) 50 | 100 100 55 1 . 61 50 59 Level 1 44 | . . 33 80 . 38 49 40 Level 2 5 | . . 11 17 . . . . Level 3 . | . . . . . . . . Level 4 . | . . . . . . . . Level 5 . | . . . . . . . . High Security . | . . . . . . . . Max Security . | . . . . . . . . Squads Dispatched 9 | . 1 1 . . 1 2 4 Investigation 1 | . . . . . . 1 . Extermination 2 | . . . . . . . 2 Reinforcement 6 | . 1 1 . . 1 1 2 Assault . | . . . . . . . . Garrison . | . . . . . . . . Intercept . | . . . . . . . . Searches Triggered . | . . . . . . . . Construction Impeded 4 | . . . . . 1 1 2 Haulers Reinforced . | . . . . . . . . Active Scanning Responses . | . . . . . . . . Cargo Convoy Interrupts 1 | . . . . . . . 1 Stealth | -11 -10 -9 -9 -9 -8 -8 -7 --------- Run | Scr Mat Mat Min Exi Min Mat Fac Distress Signals 2 | . . . . . . 1 1 Communications Jammed . | . . . . . . . . Distress Signals . | . . . . . . . . Times Spotted 100 | . 2 25 9 . 11 23 30 Peak Tracking Total 15 | . 2 5 4 . 4 6 15 Tactical Retreats 2 | . . . . . . 1 1 Traps | -11 -10 -9 -9 -9 -8 -8 -7 ------- Run | Scr Mat Mat Min Exi Min Mat Fac Traps Triggered 2 | . 1 . . . . 1 . Indirectly . | . . . . . . . . Trap Hack Attempts . | . . . . . . . . Triggered . | . . . . . . . . Disarmed . | . . . . . . . . Reprogrammed . | . . . . . . . . Reused . | . . . . . . . . Traps Extracted . | . . . . . . . . Installed . | . . . . . . . . Triggered . | . . . . . . . . Machines | -11 -10 -9 -9 -9 -8 -8 -7 ---------- Run | Scr Mat Mat Min Exi Min Mat Fac Machines Disabled 16 | . . 5 . . 2 4 5 Max in Single Turn 3 | . . 3 . . 2 1 2 Garrison Access 1 | . . . . . . . 1 Machines Sabotaged . | . . . . . . . . Garrisons Compromised . | . . . . . . . . Overloaded Fab Kills . | . . . . . . . . Hacking | -11 -10 -9 -9 -9 -8 -8 -7 --------- Run | Scr Mat Mat Min Exi Min Mat Fac Machines Accessed 10 | . . 5 . . . 2 3 Terminals 8 | . . 5 . . . 2 1 Fabricators . | . . . . . . . . Repair Stations 1 | . . . . . . . 1 Recycling Units . | . . . . . . . . Scanalyzers . | . . . . . . . . Garrison Access 1 | . . . . . . . 1 Total Hacks 24 | . . 13 . . . 4 7 Successful 12 | . . 6 . . . 2 4 Failed 12 | . . 7 . . . 2 3 Catastrophic 1 | . . 1 . . . . . Database Lockouts . | . . . . . . . . Manual 4 | . . 4 . . . . . Terminals 20 | . . 13 . . . 4 3 Fabricators . | . . . . . . . . Repair Stations 2 | . . . . . . . 2 Recycling Units . | . . . . . . . . Scanalyzers . | . . . . . . . . Garrison Access 2 | . . . . . . . 2 Terminal Hacks 10 | . . 6 . . . 2 2 Robot Analysis 1 | . . 1 . . . . . Alert Level 2 | . . 1 . . . . 1 Unreport Threat 2 | . . 2 . . . . . Locate Traps 1 | . . . . . . . 1 Hauler Manifests 1 | . . . . . . 1 . Zone Layout 3 | . . 2 . . . 1 . Fabricator Hacks . | . . . . . . . . Repair Station Hacks 1 | . . . . . . . 1 Refit 1 | . . . . . . . 1 Recycling Unit Hacks . | . . . . . . . . Scanalyzer . | . . . . . . . . Garrison Access Hacks 1 | . . . . . . . 1 Seal Access 1 | . . . . . . . 1 Unauthorized Hacks . | . . . . . . . . Terminals . | . . . . . . . . Fabricators . | . . . . . . . . Repair Stations . | . . . . . . . . Recycling Units . | . . . . . . . . Scanalyzers . | . . . . . . . . Garrison Access . | . . . . . . . . Data Cores Recovered 1 | . . 1 . . . . . Used 1 | . . 1 . . . . . Hacking Detections 7 | . . 4 . . . 1 2 Full Trace Events . | . . . . . . . . Feedback Events . | . . . . . . . . Feedback Blocked . | . . . . . . . . Robot Schematics Acquired . | . . . . . . . . Robots Built . | . . . . . . . . Authchips . | . . . . . . . . Time . | . . . . . . . . Total Robot Build Rating . | . . . . . . . . Part Schematics Acquired . | . . . . . . . . Parts Built . | . . . . . . . . Authchips . | . . . . . . . . Time . | . . . . . . . . Total Part Build Rating . | . . . . . . . . Parts Repaired . | . . . . . . . . Time . | . . . . . . . . Parts Recycled . | . . . . . . . . Recycled Matter . | . . . . . . . . Retrieved Matter . | . . . . . . . . Retrieved Components . | . . . . . . . . Parts Scanalyzed . | . . . . . . . . Part Schematics Acquired . | . . . . . . . . Parts Damaged . | . . . . . . . . Bothacking | -11 -10 -9 -9 -9 -8 -8 -7 ------------ Run | Scr Mat Mat Min Exi Min Mat Fac Used RIF Installer . | . . . . . . . . Robots Hacked . | . . . . . . . . Non-combat . | . . . . . . . . Combat . | . . . . . . . . Robot Hacks Applied . | . . . . . . . . Relay Couplers Released . | . . . . . . . . Fabnet Peak Effective % . | . . . . . . . . Robots Rewired . | . . . . . . . . Allies Hacked . | . . . . . . . . Hacks Repelled . | . . . . . . . . Allies | -11 -10 -9 -9 -9 -8 -8 -7 -------- Run | Scr Mat Mat Min Exi Min Mat Fac Total Allies 2 | . . . 2 . . . . Largest Group 2 | . . . 2 2 . . . Highest-Rated Group 46 | . . . 46 46 . . . Highest-Rated Ally 31 | . . . 31 31 . . . Total Orders . | . . . . . . . . Ally Attacks . | . . . . . . . . Total Damage . | . . . . . . . . Kills . | . . . . . . . . Allies Corrupted . | . . . . . . . . Allies Melted . | . . . . . . . . Intel | -11 -10 -9 -9 -9 -8 -8 -7 ------- Run | Scr Mat Mat Min Exi Min Mat Fac Robot Analysis Total 1 | . . 1 . . . . . Derelict Logs Recovered . | . . . . . . . . Drone Launches . | . . . . . . . . Drone Recoveries . | . . . . . . . . Exploration | -11 -10 -9 -9 -9 -8 -8 -7 ------------- Run | Scr Mat Mat Min Exi Min Mat Fac Turns Passed 4950 | 35 171 1131 559 512 517 1182 843 Spaces Moved 2485 | 35 163 593 332 321 246 505 290 Core 23 | 5 . . . . . . 18 Treads 2150 | . . 503 332 321 246 505 243 Legs 6 | . . . . . . . 6 Wheels 283 | 30 163 90 . . . . . Hover 23 | . . . . . . . 23 Flight . | . . . . . . . . Fastest Speed 50 | 50 80 80 160 160 160 160 50 Average Speed 167 | 75 80 147 160 160 183 184 238 Slowest Speed 650 | 80 80 160 160 160 240 240 650 Overloaded Moves . | . . . . . . . . Propulsion Burnouts . | . . . . . . . . Robots Hopped . | . . . . . . . . Cave-ins Triggered . | . . . . . . . . Exploration Rate (%) 45 | 4 38 55 80 84 55 40 11 Regions Visited 7 Branch Regions 3 Pre-discovered Areas . | . . . . . . . . Known Exits Taken 1 | . . . . . . 1 . Unknown Exits Taken 6 | 1 1 1 1 1 1 . . Scrap Searched 1 | . . . 1 . . . . Spaces Dug 2 | . . . . . . . 2 Terrain Destroyed 313 | . . 26 56 . 88 90 53 Melee 2 | . . . . . . . 2 Projectile . | . . . . . . . . AOE 311 | . . 26 56 . 88 90 51 Terrain Rammed . | . . . . . . . . Walls Destroyed . | . . . . . . . . Machines Disabled . | . . . . . . . . Actions | -11 -10 -9 -9 -9 -8 -8 -7 --------- Run | Scr Mat Mat Min Exi Min Mat Fac Total 2937 | 40 188 742 348 320 273 655 371 Wait 75 | . 13 21 3 . 1 30 7 Move 2478 | 34 162 592 331 320 245 504 290 Hop . | . . . . . . . . Pick Up 37 | . 2 18 2 . . 12 3 Fast Attach 23 | 6 2 6 . . 1 6 2 Attach 17 | . . 3 . . . 5 9 Detach 2 | . 1 . . . . . 1 Swap 40 | . 1 15 5 . 2 12 5 Drop 41 | . . 23 1 . 1 13 3 Fire 202 | . 7 61 5 . 21 72 36 Melee 11 | . . . . . . . 11 Ram 4 | . . . . . . . 4 Kick . | . . . . . . . . Crush 7 | . . 3 1 . 2 1 . Escape Stasis . | . . . . . . . . Rewire . | . . . . . . . . Trap . | . . . . . . . . Miscellaneous . | . . . . . . . . Route ------- -11/Scrapyard -10/Materials (discovered 2 exits: *Mat / [*Min]) -9/Materials (discovered 4 exits: *Mat x2 / [*Min] / [*Sto]) -9/Mines (discovered 2 exits: *Mat / *Exi) -9/Exiles -8/Mines -8/Materials (discovered 2 exits: *Fac x2) -7/Factory History --------- Turn | Location | Event 14 | -11/Scrapyard | Discovered new exit (range 16) 36 | -11/Scrapyard | Entered Materials 70 | -10/Materials | Discovered new exit (range 6) 178 | -10/Materials | Discovered new exit (range 13) 207 | -10/Materials | Entered another Materials area 207 | -9/Materials | Evolved 2 slots: Propulsion x1, Utility x1 356 | -9/Materials | Discovered new exit (range 7) 586 | -9/Materials | Build established: Scavenger-Mutant 609 | -9/Materials | Discovered new exit (range 12) 1052 | -9/Materials | Discovered new exit (range 16) 1196 | -9/Materials | Discovered new exit (range 14) 1338 | -9/Materials | Entered Mines 1477 | -9/Mines | Received a Rocket Launcher from a helpful Derelict 1551 | -9/Mines | Discovered new exit (range 6) 1887 | -9/Mines | Deemed a non-threat by the Exiles lab entrance 1887 | -9/Mines | Discovered new exit (range 5) 1897 | -9/Mines | Entered Exiles 1897 | -9/Exiles | Accompanied by 2 allies 1927 | -9/Exiles | Led the pair of lost Derelicts to a safe place 1936 | -9/Exiles | Met 8R-AWN 1963 | -9/Exiles | Met EX-HEX 2006 | -9/Exiles | Met EX-BIN 2126 | -9/Exiles | Met EX-DEC 2180 | -9/Exiles | Visited The Gauntlet 2389 | -9/Exiles | Discovered new exit (range 14) 2409 | -9/Exiles | Entered Mines 2612 | -8/Mines | Core integrity fell below 50% 2902 | -8/Mines | Discovered new exit (range 11) 2926 | -8/Mines | Entered Materials 2926 | -8/Materials | Evolved 2 slots: Utility x2 3108 | -8/Materials | Discovered new exit (range 15) 3470 | -8/Materials | Discovered new exit (range 8) 3481 | -8/Materials | Identified exit to Factory 3910 | -8/Materials | Lost 4 parts (1p1n1u1w) 4108 | -8/Materials | Entered Factory 4108 | -7/Factory | Evolved 2 slots: Utility x2 4803 | -7/Factory | Lost 3 parts (2n1u) 4886 | -7/Factory | Cargo convoy interrupted 4936 | -7/Factory | Core integrity fell below 50% 4948 | -7/Factory | Core integrity fell below 20% 4951 | -7/Factory | Destroyed by A-27 Freighter with PD Laser Last Messages --------------- 04930_ Penetrated by Slug. 04930_ Imp. Titanium Leg destroyed. 04931_ G-47 Trooper destroyed. 04931_ Slug penetrates U-05 Engineer. 04932_ U-05 Engineer builds a Wall. 04933_ Penetrated by Slug. 04934_ Dropped Lrg. Storage Unit. 04934_ Flak Gun destroyed. 04934_ Lgt. Armor Plating destroyed. 04934_ Dropped Flak Gun. 04934_ Structural Scanner destroyed. 04935_ Acquired 38 matter. 04936_ K-01 Serf collects debris. 04937_ Slammed into G-47 Trooper. 04937_ P-60 Hacker resets P-60 Hacker, system corruption cleaned. 04938_ Slammed into G-47 Trooper. 04939_ U-05 Engineer builds a Wall. 04939_ Slammed into G-47 Trooper. 04939_ U-05 Engineer builds a Wall. 04943_ W-25 Informer destroyed. Map ----- +----------------------------------------------------+ | ?????????????????????????????????????????????????? | | ?????????????????????????????????????????????????? | | ?????????????????????????????????????????????????? | | ?????????????????????????????????????????????????? | | ?????????????????????????????????????????????????? | | ?????????????????????????????????????????????????? | | ?????????????????????????????????????????????????? | | ?????????????????????????????????????????????????? | | ?????????????????????????????????????????????????? | | ?????? ???????????????????????????????????????? | | ??????#+##???????????????????????????????????????? | | ??????" ???????????????????????????????????????? | | ??????" ????????????????????????????????????????? | | ??????" ????????????????????????????????????????? | | ?????? ????????????????????????????????????????? | | ??????" "???????? ##?????????????????????????????? | | ??????" "???????? ##??????????####???????????????? | | ??????" "???????? ######????? #???????????????? | | ????? ?????? ######????? #???????????????? | | #######+##????? ????? +???????????????? | | ####### ##?## ????? #???????????????? | | ! # ##### ??? ######??????????? | | # ##### ######/#######??????????? | | """ + ##### ##??????????? | | """" # ######+##;##;#g """ ##??????????? | | """" # # A@ ppi""R"!!##??????????? | | ####### #! mpg""["!!##??????????? | | ^ # # # #=*hh |=#### ???????? | | / # # ####h####### ???????? | | # # # ## # #####"# ???????? | | ## ## # ## # # ! ## ??###??? | | ## ## # # # # ??? ##??? | | ####### ## # ## # ##??? | | #######+##+#### # #### #= / ##??? | | ## # # # ##!# # ##??? | | ## "" "" """ + + ## #!# # ##??? | | ## ""F"" """ ### ####[# # ##### | | ## """ """ #####+############# ###### ##### | | ## [##### ############# =%! | | ################?## ##????????### %" | | ############ ###### ############# % | | ??????????????? ###+########### # | | ??????????????? # #### | | ??????????????? # """""" ##### T#+####+####### | | ??????????????? # """""" ######## # | | ??????????????? # """""" ##?##### ?????????? | | ??????????????? # """""" ##??????? "????????? | | ??????????????? # ##????????"""???????? | | ??????????????? # ##????????""""??????? | | ??????????????? # ##????????? ??????? | +----------------------------------------------------+ Best States ------------- Heat Dissipation 38 Coolant Potential 50 Energy Generation 16 Energy Capacity 290 Matter Stores 300 Matter Capacity 300 Sight Range 16 Terrain Scan Density 10 Additional Mass Support 6 Armor Coverage 1200 Evasion (%) 44 Targeting Accuracy 5 Recoil Reduction 3 Salvage Targeting 1 Offensive Hacking 10 Item Schematics ----------------- None Robot Schematics ------------------ None Fabricated ------------ Nothing Alien Tech Used ----------------- None Achievements -------------- None Challenges ------------ None Game ------ Seed RestorationSapperGun Manual? 0 Play Time 00:34:12 Cumulative 129.7 hours Start 2022.06.01 @ 02:26:57 End 2022.06.01 @ 03:01:06 Sessions 1 Manual Loads 0 Difficulty Rogue Special Mode None Game No. 55 Rogue 55 Adventurer 0 Explorer 0 Win Type - Total 4 Types 3/0/1/0/0/0/0/0/0 Lore% 42 Gallery% 67 Achievement% 71 Wizard Run 0 Options --------- ASCII 0 Keyboard 0 Movement Numpad Keybinds 0 Fullscreen 1 Font 24/Smallcaps Map View 76x50 Tactical HUD 1 Map Filters NONE Filters LOW_CONTRAST(13,24,33) Steam 1 RUN: e46823f7-aa06-445e-87dc-498a8ec0d4fb